{"text_format":"1","workbook":"xlsx","n_sheets":3,"sheets":["Лист1","подразделения","Лист3"],"not_rendered":{"charts":0,"images":0,"macros":1,"external_links":1,"defined_names":1,"comments":0,"pivot_tables":0},"unopened":[],"bounds":{"document_bytes":16777216,"sheet_cells":100000,"rows_first":2000,"rows_last":500,"rows_between":2000,"halvings":0,"cell_chars":16384,"cell_head_chars":4096},"cells_cut":0,"cells_raw":0,"read":"whole","date_system":"1900"}

{"sheet":"Лист1","index":0,"n_rows":141,"n_cols":9,"rows_kept":141,"cut":false,"hidden":false,"merged":[[3,0,5,0],[3,1,5,1],[3,2,5,2],[6,0,8,0],[6,1,8,1],[6,2,8,2]]}
[]
[]
["№ тех.решения","дата регистрации","название ","Ответственный","Служба, подразделение","Срок исполнения","состояние","вложение","примечание"]
["А-35/17","2017-03-15","О замене преобразователя датчика активной мощности тг-11",{"$f":"IF(E4=0,\"\",VLOOKUP(E4,[1]подразделения!C4:E21,3,FALSE))","v":"Косачёв И.Н."},"ПТО","2017-04-28"]
[null,null,null,{"$f":"IF(E5=0,\"\",VLOOKUP(E5,[1]подразделения!C5:E22,3,FALSE))","v":"Макаркин А.Н."},"СР ЭТО","2017-05-02"]
[null,null,null,{"$f":"IF(E6=0,\"\",VLOOKUP(E6,[1]подразделения!C6:E23,3,FALSE))","v":"Меншатов М.М."},"СР АСУТП и КИПиА","2017-05-02"]
["А-35/18","2017-03-16","О замене преобразователя датчика активной мощности тг-12",{"$f":"IF(E7=0,\"\",VLOOKUP(E7,[1]подразделения!C7:E24,3,FALSE))","v":"Жирнов Д.С."},"СПР и ТП","2017-04-28"]
[null,null,null,{"$f":"IF(E8=0,\"\",VLOOKUP(E8,[1]подразделения!C8:E25,3,FALSE))","v":"Макаркин А.Н."},"СР ЭТО","2017-05-02"]
[null,null,null,{"$f":"IF(E9=0,\"\",VLOOKUP(E9,[1]подразделения!C9:E26,3,FALSE))","v":"Меншатов М.М."},"СР АСУТП и КИПиА","2017-05-02"]
[]
[]
[]
[]
[]
[]
[]
[]
[]
[]
[]
[]
[]
[]
[]
[]
[]
[]
[]
[null,null,null,{"$f":"IF(E29=0,\"\",VLOOKUP(E29,подразделения!C29:E46,3,FALSE))","v":""}]
[null,null,null,{"$f":"IF(E30=0,\"\",VLOOKUP(E30,подразделения!C30:E47,3,FALSE))","v":""}]
[null,null,null,{"$f":"IF(E31=0,\"\",VLOOKUP(E31,подразделения!C31:E48,3,FALSE))","v":""}]
[null,null,null,{"$f":"IF(E32=0,\"\",VLOOKUP(E32,подразделения!C32:E49,3,FALSE))","v":""}]
[null,null,null,{"$f":"IF(E33=0,\"\",VLOOKUP(E33,подразделения!C33:E50,3,FALSE))","v":""}]
[null,null,null,{"$f":"IF(E34=0,\"\",VLOOKUP(E34,подразделения!C34:E51,3,FALSE))","v":""}]
[null,null,null,{"$f":"IF(E35=0,\"\",VLOOKUP(E35,подразделения!C35:E52,3,FALSE))","v":""}]
[null,null,null,{"$f":"IF(E36=0,\"\",VLOOKUP(E36,подразделения!C36:E53,3,FALSE))","v":""}]
[null,null,null,{"$f":"IF(E37=0,\"\",VLOOKUP(E37,подразделения!C37:E54,3,FALSE))","v":""}]
[null,null,null,{"$f":"IF(E38=0,\"\",VLOOKUP(E38,подразделения!C38:E55,3,FALSE))","v":""}]
[null,null,null,{"$f":"IF(E39=0,\"\",VLOOKUP(E39,подразделения!C39:E56,3,FALSE))","v":""}]
[null,null,null,{"$f":"IF(E40=0,\"\",VLOOKUP(E40,подразделения!C40:E57,3,FALSE))","v":""}]
[null,null,null,{"$f":"IF(E41=0,\"\",VLOOKUP(E41,подразделения!C41:E58,3,FALSE))","v":""}]
[null,null,null,{"$f":"IF(E42=0,\"\",VLOOKUP(E42,подразделения!C42:E59,3,FALSE))","v":""}]
[null,null,null,{"$f":"IF(E43=0,\"\",VLOOKUP(E43,подразделения!C43:E60,3,FALSE))","v":""}]
[null,null,null,{"$f":"IF(E44=0,\"\",VLOOKUP(E44,подразделения!C44:E61,3,FALSE))","v":""}]
[null,null,null,{"$f":"IF(E45=0,\"\",VLOOKUP(E45,подразделения!C45:E62,3,FALSE))","v":""}]
[null,null,null,{"$f":"IF(E46=0,\"\",VLOOKUP(E46,подразделения!C46:E63,3,FALSE))","v":""}]
[null,null,null,{"$f":"IF(E47=0,\"\",VLOOKUP(E47,подразделения!C47:E64,3,FALSE))","v":""}]
[null,null,null,{"$f":"IF(E48=0,\"\",VLOOKUP(E48,подразделения!C48:E65,3,FALSE))","v":""}]
[null,null,null,{"$f":"IF(E49=0,\"\",VLOOKUP(E49,подразделения!C49:E66,3,FALSE))","v":""}]
[null,null,null,{"$f":"IF(E50=0,\"\",VLOOKUP(E50,подразделения!C50:E67,3,FALSE))","v":""}]
[null,null,null,{"$f":"IF(E51=0,\"\",VLOOKUP(E51,подразделения!C51:E68,3,FALSE))","v":""}]
[null,null,null,{"$f":"IF(E52=0,\"\",VLOOKUP(E52,подразделения!C52:E69,3,FALSE))","v":""}]
[null,null,null,{"$f":"IF(E53=0,\"\",VLOOKUP(E53,подразделения!C53:E70,3,FALSE))","v":""}]
[null,null,null,{"$f":"IF(E54=0,\"\",VLOOKUP(E54,подразделения!C54:E71,3,FALSE))","v":""}]
[null,null,null,{"$f":"IF(E55=0,\"\",VLOOKUP(E55,подразделения!C55:E72,3,FALSE))","v":""}]
[null,null,null,{"$f":"IF(E56=0,\"\",VLOOKUP(E56,подразделения!C56:E73,3,FALSE))","v":""}]
[null,null,null,{"$f":"IF(E57=0,\"\",VLOOKUP(E57,подразделения!C57:E74,3,FALSE))","v":""}]
[null,null,null,{"$f":"IF(E58=0,\"\",VLOOKUP(E58,подразделения!C58:E75,3,FALSE))","v":""}]
[null,null,null,{"$f":"IF(E59=0,\"\",VLOOKUP(E59,подразделения!C59:E76,3,FALSE))","v":""}]
[null,null,null,{"$f":"IF(E60=0,\"\",VLOOKUP(E60,подразделения!C60:E77,3,FALSE))","v":""}]
[null,null,null,{"$f":"IF(E61=0,\"\",VLOOKUP(E61,подразделения!C61:E78,3,FALSE))","v":""}]
[null,null,null,{"$f":"IF(E62=0,\"\",VLOOKUP(E62,подразделения!C62:E79,3,FALSE))","v":""}]
[null,null,null,{"$f":"IF(E63=0,\"\",VLOOKUP(E63,подразделения!C63:E80,3,FALSE))","v":""}]
[null,null,null,{"$f":"IF(E64=0,\"\",VLOOKUP(E64,подразделения!C64:E81,3,FALSE))","v":""}]
[null,null,null,{"$f":"IF(E65=0,\"\",VLOOKUP(E65,подразделения!C65:E82,3,FALSE))","v":""}]
[null,null,null,{"$f":"IF(E66=0,\"\",VLOOKUP(E66,подразделения!C66:E83,3,FALSE))","v":""}]
[null,null,null,{"$f":"IF(E67=0,\"\",VLOOKUP(E67,подразделения!C67:E84,3,FALSE))","v":""}]
[null,null,null,{"$f":"IF(E68=0,\"\",VLOOKUP(E68,подразделения!C68:E85,3,FALSE))","v":""}]
[null,null,null,{"$f":"IF(E69=0,\"\",VLOOKUP(E69,подразделения!C69:E86,3,FALSE))","v":""}]
[null,null,null,{"$f":"IF(E70=0,\"\",VLOOKUP(E70,подразделения!C70:E87,3,FALSE))","v":""}]
[null,null,null,{"$f":"IF(E71=0,\"\",VLOOKUP(E71,подразделения!C71:E88,3,FALSE))","v":""}]
[null,null,null,{"$f":"IF(E72=0,\"\",VLOOKUP(E72,подразделения!C72:E89,3,FALSE))","v":""}]
[null,null,null,{"$f":"IF(E73=0,\"\",VLOOKUP(E73,подразделения!C73:E90,3,FALSE))","v":""}]
[null,null,null,{"$f":"IF(E74=0,\"\",VLOOKUP(E74,подразделения!C74:E91,3,FALSE))","v":""}]
[null,null,null,{"$f":"IF(E75=0,\"\",VLOOKUP(E75,подразделения!C75:E92,3,FALSE))","v":""}]
[null,null,null,{"$f":"IF(E76=0,\"\",VLOOKUP(E76,подразделения!C76:E93,3,FALSE))","v":""}]
[null,null,null,{"$f":"IF(E77=0,\"\",VLOOKUP(E77,подразделения!C77:E94,3,FALSE))","v":""}]
[null,null,null,{"$f":"IF(E78=0,\"\",VLOOKUP(E78,подразделения!C78:E95,3,FALSE))","v":""}]
[null,null,null,{"$f":"IF(E79=0,\"\",VLOOKUP(E79,подразделения!C79:E96,3,FALSE))","v":""}]
[null,null,null,{"$f":"IF(E80=0,\"\",VLOOKUP(E80,подразделения!C80:E97,3,FALSE))","v":""}]
[null,null,null,{"$f":"IF(E81=0,\"\",VLOOKUP(E81,подразделения!C81:E98,3,FALSE))","v":""}]
[null,null,null,{"$f":"IF(E82=0,\"\",VLOOKUP(E82,подразделения!C82:E99,3,FALSE))","v":""}]
[null,null,null,{"$f":"IF(E83=0,\"\",VLOOKUP(E83,подразделения!C83:E100,3,FALSE))","v":""}]
[null,null,null,{"$f":"IF(E84=0,\"\",VLOOKUP(E84,подразделения!C84:E101,3,FALSE))","v":""}]
[null,null,null,{"$f":"IF(E85=0,\"\",VLOOKUP(E85,подразделения!C85:E102,3,FALSE))","v":""}]
[null,null,null,{"$f":"IF(E86=0,\"\",VLOOKUP(E86,подразделения!C86:E103,3,FALSE))","v":""}]
[null,null,null,{"$f":"IF(E87=0,\"\",VLOOKUP(E87,подразделения!C87:E104,3,FALSE))","v":""}]
[null,null,null,{"$f":"IF(E88=0,\"\",VLOOKUP(E88,подразделения!C88:E105,3,FALSE))","v":""}]
[null,null,null,{"$f":"IF(E89=0,\"\",VLOOKUP(E89,подразделения!C89:E106,3,FALSE))","v":""}]
[null,null,null,{"$f":"IF(E90=0,\"\",VLOOKUP(E90,подразделения!C90:E107,3,FALSE))","v":""}]
[null,null,null,{"$f":"IF(E91=0,\"\",VLOOKUP(E91,подразделения!C91:E108,3,FALSE))","v":""}]
[null,null,null,{"$f":"IF(E92=0,\"\",VLOOKUP(E92,подразделения!C92:E109,3,FALSE))","v":""}]
[null,null,null,{"$f":"IF(E93=0,\"\",VLOOKUP(E93,подразделения!C93:E110,3,FALSE))","v":""}]
[null,null,null,{"$f":"IF(E94=0,\"\",VLOOKUP(E94,подразделения!C94:E111,3,FALSE))","v":""}]
[null,null,null,{"$f":"IF(E95=0,\"\",VLOOKUP(E95,подразделения!C95:E112,3,FALSE))","v":""}]
[null,null,null,{"$f":"IF(E96=0,\"\",VLOOKUP(E96,подразделения!C96:E113,3,FALSE))","v":""}]
[null,null,null,{"$f":"IF(E97=0,\"\",VLOOKUP(E97,подразделения!C97:E114,3,FALSE))","v":""}]
[null,null,null,{"$f":"IF(E98=0,\"\",VLOOKUP(E98,подразделения!C98:E115,3,FALSE))","v":""}]
[null,null,null,{"$f":"IF(E99=0,\"\",VLOOKUP(E99,подразделения!C99:E116,3,FALSE))","v":""}]
[null,null,null,{"$f":"IF(E100=0,\"\",VLOOKUP(E100,подразделения!C100:E117,3,FALSE))","v":""}]
[null,null,null,{"$f":"IF(E101=0,\"\",VLOOKUP(E101,подразделения!C101:E118,3,FALSE))","v":""}]
[null,null,null,{"$f":"IF(E102=0,\"\",VLOOKUP(E102,подразделения!C102:E119,3,FALSE))","v":""}]
[null,null,null,{"$f":"IF(E103=0,\"\",VLOOKUP(E103,подразделения!C103:E120,3,FALSE))","v":""}]
[null,null,null,{"$f":"IF(E104=0,\"\",VLOOKUP(E104,подразделения!C104:E121,3,FALSE))","v":""}]
[null,null,null,{"$f":"IF(E105=0,\"\",VLOOKUP(E105,подразделения!C105:E122,3,FALSE))","v":""}]
[null,null,null,{"$f":"IF(E106=0,\"\",VLOOKUP(E106,подразделения!C106:E123,3,FALSE))","v":""}]
[null,null,null,{"$f":"IF(E107=0,\"\",VLOOKUP(E107,подразделения!C107:E124,3,FALSE))","v":""}]
[null,null,null,{"$f":"IF(E108=0,\"\",VLOOKUP(E108,подразделения!C108:E125,3,FALSE))","v":""}]
[null,null,null,{"$f":"IF(E109=0,\"\",VLOOKUP(E109,подразделения!C109:E126,3,FALSE))","v":""}]
[null,null,null,{"$f":"IF(E110=0,\"\",VLOOKUP(E110,подразделения!C110:E127,3,FALSE))","v":""}]
[null,null,null,{"$f":"IF(E111=0,\"\",VLOOKUP(E111,подразделения!C111:E128,3,FALSE))","v":""}]
[null,null,null,{"$f":"IF(E112=0,\"\",VLOOKUP(E112,подразделения!C112:E129,3,FALSE))","v":""}]
[null,null,null,{"$f":"IF(E113=0,\"\",VLOOKUP(E113,подразделения!C113:E130,3,FALSE))","v":""}]
[null,null,null,{"$f":"IF(E114=0,\"\",VLOOKUP(E114,подразделения!C114:E131,3,FALSE))","v":""}]
[null,null,null,{"$f":"IF(E115=0,\"\",VLOOKUP(E115,подразделения!C115:E132,3,FALSE))","v":""}]
[null,null,null,{"$f":"IF(E116=0,\"\",VLOOKUP(E116,подразделения!C116:E133,3,FALSE))","v":""}]
[null,null,null,{"$f":"IF(E117=0,\"\",VLOOKUP(E117,подразделения!C117:E134,3,FALSE))","v":""}]
[null,null,null,{"$f":"IF(E118=0,\"\",VLOOKUP(E118,подразделения!C118:E135,3,FALSE))","v":""}]
[null,null,null,{"$f":"IF(E119=0,\"\",VLOOKUP(E119,подразделения!C119:E136,3,FALSE))","v":""}]
[null,null,null,{"$f":"IF(E120=0,\"\",VLOOKUP(E120,подразделения!C120:E137,3,FALSE))","v":""}]
[null,null,null,{"$f":"IF(E121=0,\"\",VLOOKUP(E121,подразделения!C121:E138,3,FALSE))","v":""}]
[null,null,null,{"$f":"IF(E122=0,\"\",VLOOKUP(E122,подразделения!C122:E139,3,FALSE))","v":""}]
[null,null,null,{"$f":"IF(E123=0,\"\",VLOOKUP(E123,подразделения!C123:E140,3,FALSE))","v":""}]
[null,null,null,{"$f":"IF(E124=0,\"\",VLOOKUP(E124,подразделения!C124:E141,3,FALSE))","v":""}]
[null,null,null,{"$f":"IF(E125=0,\"\",VLOOKUP(E125,подразделения!C125:E142,3,FALSE))","v":""}]
[null,null,null,{"$f":"IF(E126=0,\"\",VLOOKUP(E126,подразделения!C126:E143,3,FALSE))","v":""}]
[null,null,null,{"$f":"IF(E127=0,\"\",VLOOKUP(E127,подразделения!C127:E144,3,FALSE))","v":""}]
[null,null,null,{"$f":"IF(E128=0,\"\",VLOOKUP(E128,подразделения!C128:E145,3,FALSE))","v":""}]
[null,null,null,{"$f":"IF(E129=0,\"\",VLOOKUP(E129,подразделения!C129:E146,3,FALSE))","v":""}]
[null,null,null,{"$f":"IF(E130=0,\"\",VLOOKUP(E130,подразделения!C130:E147,3,FALSE))","v":""}]
[null,null,null,{"$f":"IF(E131=0,\"\",VLOOKUP(E131,подразделения!C131:E148,3,FALSE))","v":""}]
[null,null,null,{"$f":"IF(E132=0,\"\",VLOOKUP(E132,подразделения!C132:E149,3,FALSE))","v":""}]
[null,null,null,{"$f":"IF(E133=0,\"\",VLOOKUP(E133,подразделения!C133:E150,3,FALSE))","v":""}]
[null,null,null,{"$f":"IF(E134=0,\"\",VLOOKUP(E134,подразделения!C134:E151,3,FALSE))","v":""}]
[null,null,null,{"$f":"IF(E135=0,\"\",VLOOKUP(E135,подразделения!C135:E152,3,FALSE))","v":""}]
[null,null,null,{"$f":"IF(E136=0,\"\",VLOOKUP(E136,подразделения!C136:E153,3,FALSE))","v":""}]
[null,null,null,{"$f":"IF(E137=0,\"\",VLOOKUP(E137,подразделения!C137:E154,3,FALSE))","v":""}]
[null,null,null,{"$f":"IF(E138=0,\"\",VLOOKUP(E138,подразделения!C138:E155,3,FALSE))","v":""}]
[null,null,null,{"$f":"IF(E139=0,\"\",VLOOKUP(E139,подразделения!C139:E156,3,FALSE))","v":""}]
[null,null,null,{"$f":"IF(E140=0,\"\",VLOOKUP(E140,подразделения!C140:E157,3,FALSE))","v":""}]
[null,null,null,{"$f":"IF(E141=0,\"\",VLOOKUP(E141,подразделения!C141:E158,3,FALSE))","v":""}]

{"sheet":"подразделения","index":1,"n_rows":21,"n_cols":6,"rows_kept":21,"cut":false,"hidden":false,"merged":[]}
[]
[]
[null,null,null,"Подразделение","Начальник","Почта"]
[null,null,"ПТО","Производственно-технический отдел","Косачёв И.Н.","Igor.Kosachev@enel.com "]
[null,null,"Менеджер по экологии","Группа экологии","Чечёткина О.В.","Olga.Chechetkina@enel.com "]
[null,null,"СЭиР ПГУ","Служба по эксплуатации и ремонту ПГУ","Исаев С.Ю.","Sergey.Isaev@enel.com"]
[null,null,"ТЭО","Топливно-энергетический отдел","Давиденко Д.А.","Dmitry.Davidenko@enel.com "]
[null,null,"УИТ","Управление информационных технологий","Миннибаев Д.М.","Damir.Minnibaev@enel.com"]
[null,null,"ЛМНиК","Лаборатория металлов и неразрушающего контроля","Исупов А.И.","Aleksandr.Isupov@enel.com "]
[null,null,"СПР и ТП","Служба по планированию ремонта и ТП","Жирнов Д.С.","Denis.Zhirnov@enel.com "]
[null,null,"СР АСУТП и КИПиА","Служба по ремонту АСУТП и КИПиА","Меншатов М.М.","Mikhail.Menshatov@enel.com "]
[null,null,"СР ТМО и ОСО","Служба по ремонту тепломеханического и общестанционного оборудования","Мамончиков П.Л.","Pavel.Mamonchikov@enel.com "]
[null,null,"СР ЭТО","Служба по ремонту ЭТО","Макаркин А.Н.","Alexander.Makarkin@enel.com "]
[null,null,"ССЭ","Служба сопровождения эксплуатации ","Сотников В.В.","Vladislav.Sotnikov@enel.com "]
[null,null,"ГСЭ КТЦ-1","Котлотурбинный цех №1","Бухман В.Г.","Vadim.Bukhman@enel.com "]
[null,null,"ГСЭ КТЦ-2","Котлотурбинный цех №2","Бабинов А.Н.","Alexander.Babinov@enel.com"]
[null,null,"ГСЭ ХО","Химическое оборудование","Бачинина А.П.","Alla.Bachinina@enel.com "]
[null,null,"ГСЭ ЭЦ","Электрический цех","Ащеулов И.М.","Ivan.Ashcheulov@enel.com "]
[null,null,"ЦХЛ","Центральная химическая лаборатория","Марговцева А.В.","Albina.Margovtseva@enel.com "]
[null,null,"ЦОО","Общестанционное оборудование","Горев М.П.","Mikhail.Gorev@enel.com"]
[null,null,"Менеджер ТМЦ",null,"Андреев Д.Н.","Dmitry.Andreev@enel.com"]

{"sheet":"Лист3","index":2,"n_rows":0,"n_cols":0,"rows_kept":0,"cut":false,"hidden":false,"merged":[]}